fUST/lending_fUST_20260113
["ID","MTS","AMOUNT","RATE_DAILY","PERIOD"]
[401474085,1768252243444,-151.0,0.00019889,2]
[401474086,1768252243453,-151.0,0.00019889,2]
[401474087,1768252243462,-347.0,0.00019889,2]
[401474088,1768252243472,-337.0,0.00019889,2]
[401474089,1768252243481,-347.0,0.00019889,2]
[401474090,1768252243491,-151.0,0.00019889,2]
[401474091,1768252243500,-337.0,0.00019889,2]
[401474092,1768252243509,-151.0,0.00019889,2]
[401474093,1768252243518,-337.0,0.00019889,2]
[401474094,1768252243527,-151.0,0.00019889,2]
[401474095,1768252243536,-337.0,0.00019889,2]
[401474096,1768252243546,-151.0,0.00019889,2]
[401474097,1768252243554,-151.0,0.00019889,2]
[401474098,1768252243650,-151.0,0.00019889,2]
[401474099,1768252243659,-337.0,0.00019889,2]
[401474100,1768252243668,-151.0,0.00019889,2]
[401474101,1768252243677,-337.0,0.00019889,2]
[401474102,1768252243686,-151.0,0.00019889,2]
[401474103,1768252243695,-337.0,0.00019889,2]
[401474104,1768252243704,-151.0,0.00019889,2]
[401474105,1768252243714,-199.32099567,0.00019889,2]
[401474106,1768252243723,-337.0,0.00019889,2]
[401474107,1768252243732,-151.0,0.00019889,2]
[401474108,1768252243741,-337.0,0.00019889,2]
[401474109,1768252243751,-151.0,0.00019889,2]
[401474110,1768252243760,-337.0,0.00019889,2]
[401474111,1768252243769,-151.0,0.00019889,2]
[401474112,1768252243778,-337.0,0.00019889,2]
[401474113,1768252243788,-416.19601909,0.00019889,2]
[401474114,1768252243797,-151.0,0.00019889,2]
[401474115,1768252243806,-151.0,0.00019889,2]
[401474116,1768252243816,-151.0,0.00019889,2]
[401474117,1768252243826,-151.0,0.00019889,2]
[401474118,1768252243835,-214.08732261,0.00019889,2]
[401474119,1768252243844,-347.0,0.00019889,2]
[401474120,1768252243854,-347.0,0.00019889,2]
[401474121,1768252243863,-347.0,0.00019889,2]
[401474122,1768252243872,-347.0,0.00019889,2]
[401474123,1768252243882,-347.0,0.00019889,2]
[401474124,1768252243891,-347.0,0.00019889,2]
[401474125,1768252243900,-337.0,0.00019889,2]
[401474126,1768252243909,-347.0,0.00019889,2]
[401474127,1768252243919,-347.0,0.00019889,2]
[401474128,1768252243928,-347.0,0.00019889,2]
[401474129,1768252243937,-347.0,0.00019889,2]
[401474130,1768252243946,-347.0,0.00019889,2]
[401474131,1768252243958,-347.0,0.00019889,2]
[401474132,1768252243967,-2258.0,0.00019893,2]
[401474133,1768252243976,-170.678359,0.000199,2]
[401474134,1768252243986,-170.678359,0.000199,2]
[401474135,1768252243995,-170.678359,0.000199,2]
[401474136,1768252244004,-170.678359,0.000199,2]
[401474137,1768252244013,-3654.465895,0.00019949,2]
[401474138,1768252244022,-51545.3386693,0.00019949,2]
[401474139,1768252244032,-3016.1375088,0.00019949,2]
[401474140,1768252244041,-1542681.3620206,0.0001995,2]
[401474165,1768252946067,155.0,8.06e-05,2]
[401474222,1768253431865,-300.0,0.00010958,2]
[401474225,1768253431875,-574.0,0.00010958,2]
[401474228,1768253431884,-1200.0,0.00010958,2]
[401474231,1768253431893,-266.22706693,0.00010959,2]
[401474234,1768253431902,-1500.0,0.00010959,2]
[401474237,1768253431911,-1500.0,0.00010959,2]
[401474240,1768253431920,-1614.653976,0.00010959,2]
[401474242,1768253431929,-4094.88904499,0.00011177,2]
[401474245,1768253431941,-4592.76399423,0.00011177,2]
[401474247,1768253431955,-1326.0,0.00011177,2]
[401474249,1768253431966,-39986.34696078,0.00011177,2]
[401474251,1768253431976,-300.0,0.00011177,2]
[401474253,1768253431985,-300.0,0.00011177,2]
[401474255,1768253431994,-300.0,0.00011177,2]
[401474257,1768253432003,-300.0,0.00011177,2]
[401474259,1768253432013,-300.0,0.00011177,2]
[401474261,1768253432022,-300.0,0.00011177,2]
[401474263,1768253432031,-300.0,0.00011177,2]
[401474265,1768253432040,-300.0,0.00011177,2]
[401474267,1768253432050,-300.0,0.00011177,2]
[401474269,1768253432059,-300.0,0.00011177,2]
[401474271,1768253432068,-300.0,0.00011177,2]
[401474273,1768253432077,-300.0,0.00011177,2]
[401474275,1768253432087,-300.0,0.00011177,2]
[401474277,1768253432096,-300.0,0.00011177,2]
[401474279,1768253432106,-300.0,0.00011177,2]
[401474281,1768253432115,-600.0,0.000114,2]
[401474283,1768253432124,-1027.0753719,0.00011481,2]
[401474285,1768253432136,-997.14197923,0.00011481,2]
[401474287,1768253432147,-7975.78264887,0.00011481,2]
[401474289,1768253432156,-500.0,0.00011774,2]
[401474291,1768253432165,-500.0,0.00011774,2]
[401474293,1768253432174,-500.0,0.00011774,2]
[401474295,1768253432183,-500.0,0.00011774,2]
[401474296,1768253432192,-500.0,0.00011774,2]
[401474298,1768253432201,-500.0,0.00011774,2]
[401474300,1768253432211,-500.0,0.00011774,2]
[401474301,1768253432219,-500.0,0.00011774,2]
[401474303,1768253432228,-500.0,0.00011774,2]
[401474305,1768253432238,-500.0,0.00011774,2]
[401474306,1768253432247,-500.0,0.00011774,2]
[401474307,1768253432256,-500.0,0.00011774,2]
[401474308,1768253432265,-500.0,0.00011774,2]
[401474309,1768253432275,-607.37969889,0.00011774,2]
[401474310,1768253432284,-500.0,0.00011774,2]
[401474311,1768253432294,-500.0,0.00011774,2]
[401474312,1768253432303,-500.0,0.00011774,2]
[401474313,1768253432311,-500.0,0.00011774,2]
[401474314,1768253432321,-500.0,0.00011774,2]
[401474315,1768253432330,-391.68424295,0.00011774,2]
[401474316,1768253432340,-500.0,0.00011774,2]
[401474317,1768253432349,-500.0,0.00011774,2]
[401474318,1768253432359,-500.0,0.00011774,2]
[401474319,1768253432368,-500.0,0.00011774,2]
[401474320,1768253432378,-500.0,0.00011774,2]
[401474321,1768253432387,-500.0,0.00011774,2]
[401474322,1768253432396,-500.0,0.00011774,2]
[401474323,1768253432406,-500.0,0.00011774,2]
[401474324,1768253432415,-500.0,0.00011774,2]
[401474325,1768253432425,-500.0,0.00011774,2]
[401474326,1768253432435,-500.0,0.00011774,2]
[401474327,1768253432444,-500.0,0.00011774,2]
[401474328,1768253432454,-500.0,0.00011774,2]
[401474329,1768253432463,-500.0,0.00011774,2]
[401474330,1768253432472,-500.0,0.00011774,2]
[401474331,1768253432481,-500.0,0.00011774,2]
[401474332,1768253432490,-648.20986138,0.00011774,2]
[401474333,1768253432507,-500.0,0.00011774,2]
[401474334,1768253432516,-500.0,0.00011774,2]
[401474335,1768253432526,-500.0,0.00011774,2]
[401474336,1768253432535,-500.0,0.00011774,2]
[401474337,1768253432544,-500.0,0.00011774,2]
[401474338,1768253432553,-500.0,0.00011774,2]
[401474339,1768253432562,-500.0,0.00011774,2]
[401474340,1768253432571,-500.0,0.00011774,2]
[401474341,1768253432581,-500.0,0.00011774,2]
[401474342,1768253432590,-500.0,0.00011774,2]
[401474343,1768253432599,-500.0,0.00011774,2]
[401474344,1768253432608,-500.0,0.00011774,2]
[401474345,1768253432617,-500.0,0.00011774,2]
[401474346,1768253432627,-500.0,0.00011774,2]
[401474347,1768253432636,-500.0,0.00011774,2]
[401474348,1768253432646,-500.0,0.00011774,2]
[401474349,1768253432657,-500.0,0.00011774,2]
[401474350,1768253432667,-155.55897051,0.00011774,2]
[401474351,1768253432677,-316.23702988,0.00011774,2]
[401474352,1768253432687,-500.0,0.00011774,2]
[401474353,1768253432696,-500.0,0.00011774,2]
[401474354,1768253432831,-500.0,0.00011774,2]
[401474355,1768253432841,-500.0,0.00011774,2]
[401474356,1768253432850,-500.0,0.00011774,2]
[401474357,1768253432860,-500.0,0.00011774,2]
[401474358,1768253432869,-500.0,0.00011774,2]
[401474359,1768253432879,-500.0,0.00011774,2]
[401474360,1768253432888,-500.0,0.00011774,2]
[401474361,1768253432898,-500.0,0.00011774,2]
[401474362,1768253432907,-500.0,0.00011774,2]
[401474363,1768253432916,-500.0,0.00011774,2]
[401474364,1768253432926,-500.0,0.00011774,2]
[401474365,1768253432936,-500.0,0.00011774,2]
[401474366,1768253432945,-500.0,0.00011774,2]
[401474367,1768253432955,-500.0,0.00011774,2]
[401474368,1768253432965,-500.0,0.00011774,2]
[401474369,1768253432976,-500.0,0.00011774,2]
[401474370,1768253432985,-500.0,0.00011774,2]
[401474371,1768253432995,-500.0,0.00011774,2]
[401474372,1768253433005,-500.0,0.00011774,2]
[401474373,1768253433015,-500.0,0.00011774,2]
[401474374,1768253433024,-389.827,0.00011775,2]
[401474375,1768253433033,-420.0,0.00012042,2]
[401474376,1768253433043,-305.54341056,0.00012539,2]
[401474411,1768253437938,-414.45658944,0.00012539,2]
[401474413,1768253437947,-314.14793898,0.00012959,2]
[401474414,1768253437956,-587.0,0.00013234,2]
[401474416,1768253437965,-500.0,0.00013273,2]
[401474418,1768253437974,-613.91769968,0.00013273,2]
[401474420,1768253437984,-500.0,0.00013273,2]
[401474422,1768253437993,-500.0,0.00013273,2]
[401474424,1768253438002,-500.0,0.00013273,2]
[401474426,1768253438011,-500.0,0.00013273,2]
[401474428,1768253438020,-500.0,0.00013273,2]
[401474430,1768253438030,-500.0,0.00013273,2]
[401474432,1768253438039,-504.59320272,0.00013273,2]
[401474434,1768253438048,-17379.6692671,0.00013699,2]
[401474436,1768253438058,-13589.4097455,0.00013699,2]
[401474438,1768253438067,-2786.494888,0.00013699,2]
[401474440,1768253438076,-1000.0,0.00013699,2]
[401474442,1768253438085,-500.0,0.00013699,2]
[401474444,1768253438094,-500.0,0.00013699,2]
[401474446,1768253438103,-500.0,0.00013699,2]
[401474448,1768253438113,-500.0,0.00013699,2]
[401474450,1768253438122,-500.0,0.00013699,2]
[401474452,1768253438131,-500.0,0.00013699,2]
[401474454,1768253438140,-500.0,0.00013699,2]
[401474455,1768253438149,-501.52224721,0.00013699,2]
[401474457,1768253438158,-612.0897626,0.00013699,2]
[401474459,1768253438167,-500.0,0.00013699,2]
[401474461,1768253438177,-864.0,0.00013793,2]
[401474462,1768253438187,-1000.0,0.00013821,2]
[401474463,1768253438196,-1000.0,0.00013821,2]
[401474464,1768253438205,-1000.80134157,0.00013821,2]
[401474465,1768253438215,-423.32811707,0.00013821,2]
[401474466,1768253438224,-1000.0,0.00013821,2]
[401474467,1768253438234,-500.0,0.00013821,2]
[401474468,1768253438244,-1000.0,0.00013821,2]
[401474469,1768253438254,-500.0,0.00014067,2]
[401474470,1768253438263,-500.0,0.00014204,2]
[401474471,1768253438273,-500.0,0.00014247,2]
[401474472,1768253438282,-517.77857831,0.00014247,2]
[401474473,1768253438292,-158.4999436,0.00014247,2]
[401474474,1768253438301,-321.28778123,0.00014247,2]
[401474475,1768253438311,-1000.0,0.00014247,2]
[401474476,1768253438320,-1000.0,0.00014247,2]
[401474477,1768253438329,-1000.0,0.00014247,2]
[401474478,1768253438339,-1000.0,0.00014247,2]
[401474479,1768253438348,-500.0,0.00014341,2]
[401474480,1768253438358,-1500.0,0.00014368,2]
[401474481,1768253438368,-677.20505665,0.00014368,2]
[401474482,1768253438378,-485.3091038,0.00014368,2]
[401474483,1768253438389,-1500.0,0.00014368,2]
[401474484,1768253438398,-527.82907751,0.00014478,2]
[401474485,1768253438407,-5000.0,0.0001451,2]
[401474486,1768253438417,-823.0,0.00014543,2]
[401474487,1768253438427,-500.0,0.00014589,2]
[401474488,1768253438436,-500.0,0.00014589,2]
[401474489,1768253438446,-500.0,0.00014589,2]
[401474490,1768253438456,-500.0,0.00014589,2]
[401474491,1768253438466,-500.0,0.00014589,2]
[401474492,1768253438475,-437.36783205,0.00014589,2]
[401474493,1768253438485,-500.0,0.00014589,2]
[401474494,1768253438494,-500.0,0.00014589,2]
[401474495,1768253438504,-500.0,0.00014589,2]
[401474496,1768253438513,-500.0,0.00014589,2]
[401474497,1768253438523,-500.0,0.00014589,2]
[401474498,1768253438533,-500.0,0.00014589,2]
[401474499,1768253438542,-500.0,0.00014589,2]
[401474500,1768253438552,-500.0,0.00014589,2]
[401474501,1768253438561,-411.57446424,0.00014589,2]
[401474502,1768253438571,-500.0,0.00014589,2]
[401474503,1768253438581,-500.0,0.00014589,2]
[401474504,1768253438591,-500.0,0.00014589,2]
[401474505,1768253438601,-500.0,0.00014589,2]
[401474506,1768253438610,-500.0,0.00014589,2]
[401474507,1768253438620,-500.0,0.00014589,2]
[401474508,1768253438630,-500.0,0.00014589,2]
[401474509,1768253438639,-200.0,0.00014589,2]
[401474510,1768253438649,-500.0,0.00014589,2]
[401474511,1768253438661,-500.0,0.00014589,2]
[401474512,1768253438671,-500.0,0.00014589,2]
[401474513,1768253438680,-500.0,0.00014589,2]
[401474514,1768253438689,-500.0,0.00014589,2]
[401474515,1768253438699,-62664.215987,0.0001459,2]
[401474516,1768253438709,-1000000.0,0.00014695,2]
[401474517,1768253438718,-1500.0,0.00014795,2]
[401474518,1768253438728,-1500.0,0.00014795,2]
[401474519,1768253438737,-175.05887209,0.00014795,2]
[401474520,1768253438746,-210.84440634,0.00014795,2]
[401474521,1768253438758,-155.72124395,0.00014916,2]
[401474522,1768253438767,-196.11794093,0.00014916,2]
[401474523,1768253438777,-362.06881102,0.00014959,2]
[401474524,1768253438786,-10000.0,0.00015,2]
[401474525,1768253438796,-161.900775,0.00015068,2]
[401474526,1768253438806,-1000.0,0.00015173,2]
[401474527,1768253438817,-1702.30233565,0.00015342,2]
[401474528,1768253438826,-1152.0,0.00015982,2]
[401474529,1768253438836,-500.0,0.00016438,2]
[401474530,1768253438846,-394.31480662,0.00016438,2]
[401474531,1768253438855,-10000.0,0.000165,2]
[401474532,1768253438864,-1000.0,0.0001669,2]
[401474533,1768253438874,-244.0,0.0001669,2]
[401474534,1768253438883,-409.98968307,0.00016959,2]
[401474535,1768253438894,-81746.64048322,0.0001701,3]
[401474536,1768253438903,-1613.0,0.00017563,2]
[401474537,1768253438912,-1041.66666667,0.00017648,2]
[401474538,1768253438922,-506.63868187,0.00017878,2]
[401474539,1768253438932,-507127.55301876,0.00017998,2]
[401474540,1768253438941,-1430.0,0.00018,2]
[401474541,1768253438950,-75067.17408524,0.00018,2]
[401474542,1768253438959,-41693.40887456,0.00018,5]
[401474543,1768253438969,-500.0,0.00018306,7]
[401474544,1768253438979,-1000.0,0.00018359,2]
[401474545,1768253438988,-492.0,0.00018359,2]
[401474546,1768253438997,-2147.0,0.00018599,2]
[401474547,1768253439007,-628.0,0.00018599,2]
[401474548,1768253439016,-715.0,0.00018599,2]
[401474549,1768253439029,-197.827,0.00018599,2]
[401474550,1768253439038,-417.0,0.00018599,2]
[401474551,1768253439047,-417.0,0.00018599,2]
[401474552,1768253439057,-303.10001603,0.000189,2]
[401474553,1768253439066,-303.10001603,0.000189,2]
[401474554,1768253439076,-496.47127164,0.00018948,2]
[401474555,1768253439086,-181.08010149,0.00018948,2]
[401474556,1768253439096,-187.78006525,0.00018948,2]
[401474557,1768253439105,-194.72792766,0.00018948,2]
[401474558,1768253439115,-201.93286099,0.00018948,2]
[401474559,1768253439125,-209.40437684,0.00018948,2]
[401474560,1768253439134,-217.15233878,0.00018948,2]
[401474561,1768253439144,-225.18697532,0.00018948,2]
[401474562,1768253439154,-233.51889341,0.00018948,2]
[401474563,1768253439165,-242.15909246,0.00018948,2]
[401474564,1768253439175,-2398.4119403,0.00018948,2]
[401474565,1768253439185,-251.11897888,0.00018948,2]
[401474566,1768253439195,-260.4103811,0.00018948,2]
[401474567,1768253439205,-270.0455652,0.00018948,2]
[401474568,1768253439215,-280.03725112,0.00018948,2]
[401474569,1768253439224,-290.39862941,0.00018948,2]
[401474570,1768253439233,-301.1433787,0.00018948,2]
[401474571,1768253439243,-457.91055512,0.00018959,2]
[401474572,1768253439252,-303.10001603,0.00019089,2]
[401474573,1768253439262,-303.10001609,0.00019089,2]
[401474574,1768253439272,-303.10001603,0.00019278,2]
[401474575,1768253439282,-15930.49,0.000193,2]
[401474576,1768253439292,-1375.0,0.000193,2]
[401474577,1768253439302,-500.0,0.00019402,7]
[401474578,1768253439311,-303.10001603,0.00019467,2]
[401474579,1768253439320,-514.84070869,0.00019496,2]
[401474580,1768253439330,-2487.15318209,0.00019496,2]
[401474581,1768253439340,-718.0,0.0001952,2]
[401474582,1768253439350,-800.0,0.00019532,2]
[401474583,1768253439360,-741.9476561,0.00019551,2]
[401474584,1768253439369,-800.0,0.00019566,2]
[401474585,1768253439379,-800.0,0.00019569,2]
[401474586,1768253439389,-160.0,0.00019575,2]
[401474587,1768253439398,-800.0,0.0001959,2]
[401474588,1768253439407,-800.0,0.00019613,2]
[401474589,1768253439416,-800.0,0.00019641,2]
[401474591,1768253439426,-800.0,0.00019644,2]
[401474592,1768253439436,-800.0,0.00019651,2]
[401474593,1768253439445,-303.10001603,0.00019656,2]
[401474594,1768253439454,-800.0,0.0001966,2]
[401474595,1768253439463,-800.0,0.0001966,2]
[401474596,1768253439473,-800.0,0.00019664,2]
[401474597,1768253439482,-269.0,0.00019702,2]
[401474598,1768253439492,-800.0,0.00019723,2]
[401474599,1768253439501,-800.0,0.00019726,2]
[401474600,1768253439511,-250.0,0.00019726,2]
[401474601,1768253439520,-564.47210763,0.00019729,2]
[401474602,1768253439530,-800.0,0.00019753,2]
[401474603,1768253439540,-800.0,0.00019754,2]
[401474604,1768253439550,-800.0,0.0001977,2]
[401474605,1768253439559,-800.0,0.0001977,2]
[401474606,1768253439569,-2024.52817274,0.00019794,2]
[401474607,1768253439578,-502.0,0.000198,2]
[401474608,1768253439588,-454.65002405,0.00019845,4]
[401474609,1768253439597,-160.0,0.00019863,3]
[401474610,1768253439607,-4547.00378185,0.00019889,2]
[401474611,1768253439616,-11051.4734638,0.00019949,2]
[401474612,1768253439627,-180.0234836,0.00019949,2]
[401474613,1768253439636,-997.3667037,0.00019949,2]
[401474614,1768253439645,-125503.11195166,0.0001995,2]
[401475118,1768254004347,153.26,5e-05,2]
[401475119,1768254004922,153.26,9.5e-05,2]
[401475127,1768254631967,-300.0,0.00011707,2]
[401475128,1768254631977,-286.56220887,0.00011707,2]
[401475129,1768254631991,-298.43779113,0.00011707,2]
[401475130,1768254632000,-1200.0,0.00011707,2]
[401475131,1768254632009,-288.85421703,0.00011707,2]
[401475132,1768254632019,-513.15983465,0.00011708,2]
[401475134,1768254632029,-300.0,0.00011708,2]
[401475135,1768254632038,-300.0,0.00011708,2]
[401475136,1768254632048,-300.0,0.00011708,2]
[401475137,1768254632058,-300.0,0.00011708,2]
[401475138,1768254632067,-300.0,0.00011708,2]
[401475139,1768254632076,-300.0,0.00011708,2]
[401475140,1768254632086,-300.0,0.00011708,2]
[401475141,1768254632095,-300.0,0.00011708,2]
[401475142,1768254632105,-300.0,0.00011708,2]
[401475143,1768254632114,-300.0,0.00011708,2]
[401475144,1768254632123,-300.0,0.00011708,2]
[401475145,1768254632132,-300.0,0.00011708,2]
[401475146,1768254632141,-300.0,0.00011708,2]
[401475147,1768254632150,-300.0,0.00011708,2]
[401475148,1768254632159,-300.0,0.00011708,2]
[401475149,1768254632168,-999.0,0.00011886,2]
[401475150,1768254632177,-600.0,0.00011941,2]
[401475151,1768254632186,-420.0,0.00012855,2]
[401475152,1768254632195,-1680.0,0.00012878,2]
[401475153,1768254632205,-720.0,0.00013135,2]
[401475154,1768254632214,-205.92696646,0.00013263,2]
[401475155,1768254632223,-500.0,0.00013273,2]
[401475156,1768254632232,-500.0,0.00013273,2]
[401475157,1768254632241,-308.0168717,0.00013273,2]
[401475158,1768254632407,-191.9831283,0.00013273,2]
[401475159,1768254632416,-500.0,0.00013273,2]
[401475160,1768254632426,-489.48889858,0.00013273,2]
[401475161,1768254632435,-315.41775162,0.00013273,2]
[401475162,1768254632445,-184.58224838,0.00013273,2]
[401475163,1768254632454,-255.83110487,0.00013273,2]
[401475164,1768254632465,-244.16889513,0.00013273,2]
[401475165,1768254632475,-394.52826302,0.00013273,2]
[401475166,1768254632484,-5.07424653,0.00013273,2]
[401475189,1768254638060,-288.85421703,0.00011707,2]
[401475190,1768254638071,-494.92575347,0.00013273,2]
[401475191,1768254638080,-500.0,0.00013273,2]
[401475192,1768254638090,-500.0,0.00013273,2]
[401475193,1768254638100,-500.0,0.00013273,2]
[401475194,1768254638110,-524.41105261,0.00013273,2]
[401475195,1768254638119,-500.0,0.00013273,2]
[401475196,1768254638129,-500.0,0.00013273,2]
[401475197,1768254638139,-500.0,0.00013273,2]
[401475198,1768254638148,-500.0,0.00013273,2]
[401475199,1768254638158,-500.0,0.00013273,2]
[401475200,1768254638167,-500.0,0.00013273,2]
[401475201,1768254638177,-500.0,0.00013273,2]
[401475202,1768254638186,-500.0,0.00013273,2]
[401475203,1768254638196,-500.0,0.00013273,2]
[401475204,1768254638207,-326.76109943,0.00013273,2]
[401475205,1768254638218,-290.33203274,0.00013273,2]
[401475206,1768254638227,-500.0,0.00013273,2]
[401475207,1768254638236,-500.0,0.00013273,2]
[401475208,1768254638245,-500.0,0.00013273,2]
[401475209,1768254638255,-500.0,0.00013273,2]
[401475210,1768254638264,-332.40668052,0.00013273,2]
[401475211,1768254638273,-500.0,0.00013273,2]
[401475212,1768254638282,-125.99594715,0.00013273,2]
[401475213,1768254638294,-374.00405285,0.00013273,2]
[401475214,1768254638303,-500.0,0.00013273,2]
[401475215,1768254638312,-500.0,0.00013273,2]
[401475216,1768254638322,-310.61180283,0.00013273,2]
[401475217,1768254638332,-189.38819717,0.00013273,2]
[401475218,1768254638341,-500.0,0.00013273,2]
[401475219,1768254638350,-500.0,0.00013273,2]
[401475220,1768254638360,-500.0,0.00013273,2]
[401475221,1768254638368,-500.0,0.00013273,2]
[401475222,1768254638378,-500.0,0.00013273,2]
[401475223,1768254638388,-500.0,0.00013273,2]
[401475224,1768254638397,-214.33301538,0.00013273,2]
[401475225,1768254638406,-500.0,0.00013425,2]
[401475226,1768254638415,-6894.2073128,0.00013462,2]
[401475227,1768254638424,-500.0,0.00013562,2]
[401475228,1768254638434,-300.0,0.00013673,2]
[401475229,1768254638443,-300.51356093,0.00013698,2]
[401475230,1768254638453,-500.0,0.00013698,2]
[401475231,1768254638462,-294.24554015,0.00013698,2]
[401475232,1768254638472,-500.0,0.00013698,2]
[401475233,1768254638482,-500.0,0.00013698,2]
[401475234,1768254638491,-500.0,0.00013698,2]
[401475235,1768254638501,-500.0,0.00013698,2]
[401475236,1768254638510,-500.0,0.00013698,2]
[401475237,1768254638520,-424.02633665,0.00013698,2]
[401475238,1768254638529,-341.59355798,0.00013698,2]
[401475239,1768254638539,-357.04287724,0.00013698,2]
[401475240,1768254638548,-377.055,0.00013698,2]
[401475241,1768254638557,-58515.3478046,0.00013699,2]
[401475242,1768254638567,-500.0,0.00013699,2]
[401475243,1768254638576,-581.34216933,0.00013699,2]
[401475244,1768254638585,-500.0,0.00013699,2]
[401475245,1768254638594,-500.93038909,0.00013699,2]
[401475246,1768254638604,-500.0,0.00013699,2]
[401475247,1768254638613,-500.0,0.00013699,2]
[401475248,1768254638622,-500.0,0.00013699,2]
[401475249,1768254638632,-500.0,0.00013699,2]
[401475250,1768254638641,-500.0,0.00013699,2]
[401475251,1768254638651,-500.0,0.00013699,2]
[401475252,1768254638660,-500.0,0.00013699,2]
[401475253,1768254638670,-500.0,0.00013699,2]
[401475254,1768254638680,-500.0,0.00013699,2]
[401475255,1768254638689,-500.0,0.00013699,2]
[401475256,1768254638699,-500.0,0.00013699,2]
[401475257,1768254638708,-500.0,0.00013699,2]
[401475258,1768254638718,-500.0,0.00013699,2]
[401475259,1768254638728,-500.0,0.00013699,2]
[401475260,1768254638738,-500.0,0.00013699,2]
[401475261,1768254638747,-500.0,0.00013699,2]
[401475262,1768254638756,-517.77857831,0.00013699,2]
[401475263,1768254638766,-500.0,0.00013699,2]
[401475264,1768254638776,-500.0,0.00013699,2]
[401475265,1768254638785,-276.29994154,0.00013699,2]
[401475266,1768254638795,-500.0,0.00013699,2]
[401475267,1768254638805,-500.0,0.00013699,2]
[401475268,1768254638815,-500.0,0.00013699,2]
[401475269,1768254638824,-227.11320444,0.00013699,2]
[401475270,1768254638834,-500.0,0.00013699,2]
[401475271,1768254638844,-500.0,0.00013699,2]
[401475272,1768254638854,-500.0,0.00013699,2]
[401475273,1768254638864,-500.0,0.00013699,2]
[401475274,1768254638874,-159.64533136,0.00013699,2]
[401475275,1768254638883,-501.55614282,0.00013699,2]
[401475276,1768254638893,-500.0,0.00013699,2]
[401475277,1768254638902,-441.99834149,0.00013699,2]
[401475278,1768254638912,-500.0,0.00013699,2]
[401475279,1768254638922,-500.0,0.00013699,2]
[401475280,1768254638932,-646.68328603,0.00013699,2]
[401475281,1768254638942,-500.0,0.00013699,2]
[401475282,1768254638952,-500.0,0.00013699,2]
[401475283,1768254638962,-500.0,0.00013699,2]
[401475284,1768254638972,-500.0,0.00013699,2]
[401475285,1768254638984,-346.05518507,0.00013699,2]
[401475286,1768254638994,-500.0,0.00013699,2]
[401475287,1768254639003,-500.0,0.00013699,2]
[401475288,1768254639012,-500.0,0.00013699,2]
[401475289,1768254639023,-500.0,0.00013699,2]
[401475290,1768254639032,-500.0,0.00013699,2]
[401475291,1768254639042,-353.02410941,0.00013699,2]
[401475292,1768254639052,-500.0,0.00013699,2]
[401475293,1768254639062,-500.0,0.00013699,2]
[401475294,1768254639071,-500.0,0.00013699,2]
[401475295,1768254639081,-500.0,0.00013699,2]
[401475296,1768254639092,-500.0,0.00013699,2]
[401475297,1768254639102,-366.95119537,0.00013699,2]
[401475298,1768254639111,-500.0,0.00013699,2]
[401475299,1768254639121,-500.0,0.00013699,2]
[401475300,1768254639131,-313.20652716,0.00013699,2]